[Event "*** Titled Tuesday Blitz"]
[Site "Chess.com"]
[Date "2019.05.07"]
[Round "10"]
[White "Casablanca"]
[Black "LarissaSteenbekkers"]
[Result "1-0"]
[WhiteElo "2147"]
[BlackElo "1969"]
[TimeControl "180+2"]
[EndTime "15:24:44 PDT"]
[Termination "Casablanca won on time"]

1. c4 {[%clk 0:03:01.9]} 1... Nf6 {[%clk 0:02:57.1]} 2. g3 {[%clk 0:03:00.5]}
2... g6 {[%clk 0:02:56.7]} 3. Bg2 {[%clk 0:03:00.9]} 3... Bg7 {[%clk 0:02:57.9]}
4. Nc3 {[%clk 0:03:01.6]} 4... O-O {[%clk 0:02:58]} 5. Nf3 {[%clk 0:02:57.1]}
5... d6 {[%clk 0:02:56.5]} 6. O-O {[%clk 0:02:56.8]} 6... e5 {[%clk 0:02:53.9]}
7. d3 {[%clk 0:02:56.2]} 7... Nc6 {[%clk 0:02:52.5]} 8. Bg5 {[%clk 0:02:50.7]}
8... h6 {[%clk 0:02:49.5]} 9. Bd2 {[%clk 0:02:38.8]} 9... Be6 {[%clk 0:02:40.9]}
10. Rb1 {[%clk 0:02:35.6]} 10... a5 {[%clk 0:02:39.2]} 11. a3 {[%clk 0:02:33.2]}
11... Qd7 {[%clk 0:02:36.4]} 12. b4 {[%clk 0:02:32.8]} 12... axb4 {[%clk
0:02:35.4]} 13. axb4 {[%clk 0:02:34.7]} 13... Bh3 {[%clk 0:02:35]} 14. b5 {[%clk
0:02:34]} 14... Ne7 {[%clk 0:02:31.7]} 15. e4 {[%clk 0:02:25.7]} 15... Bxg2
{[%clk 0:02:27.6]} 16. Kxg2 {[%clk 0:02:27.6]} 16... Nh5 {[%clk 0:02:26.7]} 17.
Qb3 {[%clk 0:02:02.8]} 17... Kh7 {[%clk 0:02:23.3]} 18. Nd5 {[%clk 0:01:57.8]}
18... Nxd5 {[%clk 0:02:13.4]} 19. cxd5 {[%clk 0:01:59.7]} 19... f5 {[%clk
0:02:01.2]} 20. b6 {[%clk 0:02:00]} 20... c6 {[%clk 0:01:53.3]} 21. dxc6 {[%clk
0:01:59.1]} 21... bxc6 {[%clk 0:01:47.4]} 22. b7 {[%clk 0:01:57.9]} 22... Rab8
{[%clk 0:01:46.3]} 23. Be3 {[%clk 0:01:19.7]} 23... f4 {[%clk 0:01:42.3]} 24.
Ba7 {[%clk 0:01:20.2]} 24... fxg3 {[%clk 0:01:18.8]} 25. fxg3 {[%clk 0:01:18.6]}
25... d5 {[%clk 0:01:11.3]} 26. Bxb8 {[%clk 0:01:18.4]} 26... Rxb8 {[%clk
0:01:09.3]} 27. exd5 {[%clk 0:01:17.2]} 27... cxd5 {[%clk 0:01:07.5]} 28. Qb5
{[%clk 0:01:17.4]} 28... Qg4 {[%clk 0:00:56.4]} 29. Rb4 {[%clk 0:01:07.1]} 29...
e4 {[%clk 0:00:53.1]} 30. dxe4 {[%clk 0:01:05]} 30... dxe4 {[%clk 0:00:45.9]}
31. Nd2 {[%clk 0:00:53.3]} 31... Bc3 {[%clk 0:00:36.3]} 32. Rxe4 {[%clk
0:00:40.7]} 32... Qg5 {[%clk 0:00:24.5]} 33. Qxg5 {[%clk 0:00:31]} 33... hxg5
{[%clk 0:00:23.6]} 34. Re7+ {[%clk 0:00:32.5]} 34... Kh6 {[%clk 0:00:22.4]} 35.
Ne4 {[%clk 0:00:31.1]} 35... Bd4 {[%clk 0:00:16.5]} 36. Rff7 {[%clk 0:00:28.4]}
36... Ng7 {[%clk 0:00:11.4]} 37. g4 {[%clk 0:00:20.8]} 37... Rd8 {[%clk
0:00:03.7]} 38. Rd7 {[%clk 0:00:21.2]} 1-0

[Event "*** Titled Tuesday Blitz"]
[Site "Chess.com"]
[Date "2019.05.07"]
[Round "10"]
[White "northridgehawk"]
[Black "Karacsonyi_Gellert"]
[Result "0-1"]
[WhiteElo "2256"]
[BlackElo "2546"]
[TimeControl "180+2"]
[EndTime "15:24:47 PDT"]
[Termination "Karacsonyi_Gellert won on time"]

1. e4 {[%clk 0:03:01.9]} 1... c5 {[%clk 0:03:00.3]} 2. Nf3 {[%clk 0:03:02.7]}
2... Nc6 {[%clk 0:03:00.8]} 3. d4 {[%clk 0:03:03.4]} 3... cxd4 {[%clk
0:03:01.5]} 4. Nxd4 {[%clk 0:03:05.3]} 4... g6 {[%clk 0:03:02.9]} 5. c4 {[%clk
0:03:03.6]} 5... Nf6 {[%clk 0:03:03.2]} 6. Nc3 {[%clk 0:03:03.3]} 6... d6 {[%clk
0:03:04.5]} 7. Nc2 {[%clk 0:03:02.1]} 7... Bg7 {[%clk 0:03:03.4]} 8. Be2 {[%clk
0:03:03.7]} 8... O-O {[%clk 0:03:04.6]} 9. O-O {[%clk 0:03:05.3]} 9... a5 {[%clk
0:03:04.6]} 10. Be3 {[%clk 0:03:06.3]} 10... Be6 {[%clk 0:03:03.6]} 11. Qd2
{[%clk 0:03:07]} 11... Nd7 {[%clk 0:03:04.2]} 12. f3 {[%clk 0:03:00.9]} 12... a4
{[%clk 0:03:04]} 13. Na3 {[%clk 0:02:58.3]} 13... Qa5 {[%clk 0:03:03]} 14. Rac1
{[%clk 0:02:58.4]} 14... Rfc8 {[%clk 0:03:01.7]} 15. Rfd1 {[%clk 0:02:58.6]}
15... Nce5 {[%clk 0:02:58.7]} 16. Bh6 {[%clk 0:02:14]} 16... Bxh6 {[%clk
0:02:51.9]} 17. Qxh6 {[%clk 0:02:14.3]} 17... Qb6+ {[%clk 0:02:43.5]} 18. Kh1
{[%clk 0:02:13.6]} 18... Nxc4 {[%clk 0:02:34.3]} 19. Nxc4 {[%clk 0:01:54.7]}
19... Bxc4 {[%clk 0:02:34.8]} 20. Bxc4 {[%clk 0:01:53.5]} 20... Rxc4 {[%clk
0:02:34.4]} 21. Nd5 {[%clk 0:01:53.9]} 21... Rxc1 {[%clk 0:02:33.4]} 22. Nxe7+
{[%clk 0:01:49.6]} 22... Kh8 {[%clk 0:02:34.8]} 23. Rxc1 {[%clk 0:01:46.8]}
23... Qxb2 {[%clk 0:02:33]} 24. h4 {[%clk 0:01:43.8]} 24... Qe5 {[%clk
0:02:22.2]} 25. Nd5 {[%clk 0:01:33.7]} 25... Nc5 {[%clk 0:02:15.4]} 26. Rd1
{[%clk 0:00:56.7]} 26... b5 {[%clk 0:01:39.1]} 27. Ne3 {[%clk 0:00:30.8]} 27...
b4 {[%clk 0:01:22]} 28. Ng4 {[%clk 0:00:17.8]} 28... Qg7 {[%clk 0:01:21]} 29.
Qe3 {[%clk 0:00:10.7]} 29... h5 {[%clk 0:01:13.7]} 30. Nf2 {[%clk 0:00:07.6]}
30... b3 {[%clk 0:01:13.7]} 31. axb3 {[%clk 0:00:08.7]} 31... axb3 {[%clk
0:01:15.4]} 32. Rb1 {[%clk 0:00:07.7]} 32... Ra1 {[%clk 0:01:11.1]} 33. Qc1
{[%clk 0:00:08]} 33... b2 {[%clk 0:01:06.8]} 34. Qc2 {[%clk 0:00:05.9]} 34...
Rxb1+ {[%clk 0:01:05.1]} 35. Qxb1 {[%clk 0:00:07.8]} 35... Qc3 {[%clk
0:01:05.2]} 36. Kh2 {[%clk 0:00:07.7]} 36... Qc1 {[%clk 0:01:00.2]} 37. Qa2
{[%clk 0:00:09.1]} 37... b1=Q {[%clk 0:00:46.6]} 38. Qxf7 {[%clk 0:00:08.1]}
38... Qh6 {[%clk 0:00:43.2]} 39. Nh3 {[%clk 0:00:08.3]} 39... Qb8 {[%clk
0:00:38.4]} 40. Ng5 {[%clk 0:00:08.2]} 40... Qg7 {[%clk 0:00:37]} 41. Qd5 {[%clk
0:00:08]} 41... Qe5+ {[%clk 0:00:35.1]} 0-1

[Event "*** Titled Tuesday Blitz"]
[Site "Chess.com"]
[Date "2019.05.07"]
[Round "10"]
[White "AlexandraBotez"]
[Black "zurzan"]
[Result "1-0"]
[WhiteElo "2005"]
[BlackElo "1986"]
[TimeControl "180+2"]
[EndTime "15:24:49 PDT"]
[Termination "AlexandraBotez won by resignation"]

1. d4 {[%clk 0:02:56.1]} 1... d6 {[%clk 0:03:01.9]} 2. c4 {[%clk 0:02:56.7]}
2... f5 {[%clk 0:03:02.5]} 3. g3 {[%clk 0:02:57.2]} 3... Nf6 {[%clk 0:03:03.3]}
4. Bg2 {[%clk 0:02:56.8]} 4... g6 {[%clk 0:03:05.2]} 5. Nc3 {[%clk 0:02:58]}
5... Bg7 {[%clk 0:03:07.1]} 6. Bf4 {[%clk 0:02:59.2]} 6... O-O {[%clk
0:03:08.6]} 7. Nf3 {[%clk 0:02:56.2]} 7... Nbd7 {[%clk 0:03:08.9]} 8. d5 {[%clk
0:02:56.3]} 8... c6 {[%clk 0:03:02.2]} 9. O-O {[%clk 0:02:56]} 9... Ne5 {[%clk
0:02:52]} 10. Nxe5 {[%clk 0:02:55.6]} 10... dxe5 {[%clk 0:02:52.5]} 11. Bxe5
{[%clk 0:02:56.9]} 11... cxd5 {[%clk 0:02:51.8]} 12. cxd5 {[%clk 0:02:57.1]}
12... Kh8 {[%clk 0:02:49.1]} 13. Qb3 {[%clk 0:02:55.2]} 13... Re8 {[%clk
0:02:34.3]} 14. Rad1 {[%clk 0:02:54.6]} 14... Nd7 {[%clk 0:02:28.2]} 15. Bxg7+
{[%clk 0:02:53.1]} 15... Kxg7 {[%clk 0:02:30.1]} 16. Qb4 {[%clk 0:02:46]} 16...
Qb6 {[%clk 0:02:11.8]} 17. Qxb6 {[%clk 0:02:30.5]} 17... Nxb6 {[%clk 0:02:12.5]}
18. b3 {[%clk 0:02:30.1]} 18... Bd7 {[%clk 0:02:12.5]} 19. Rd3 {[%clk
0:02:21.6]} 19... Rac8 {[%clk 0:02:11.3]} 20. Rfd1 {[%clk 0:02:20.9]} 20... a6
{[%clk 0:02:09.4]} 21. e4 {[%clk 0:02:17]} 21... Rc7 {[%clk 0:01:59.4]} 22. d6
{[%clk 0:01:59.8]} 22... exd6 {[%clk 0:01:55.5]} 23. Rxd6 {[%clk 0:01:58.9]}
23... Rxc3 {[%clk 0:01:50.5]} 24. Rxb6 {[%clk 0:01:58.5]} 24... Bc6 {[%clk
0:01:49.1]} 25. exf5 {[%clk 0:01:57.6]} 25... Bxg2 {[%clk 0:01:48.7]} 26. f6+
{[%clk 0:01:57.1]} 26... Kh6 {[%clk 0:01:46.4]} 27. Kxg2 {[%clk 0:01:57.9]}
27... Rc7 {[%clk 0:01:42.1]} 28. Rd4 {[%clk 0:01:55.8]} 28... Rf8 {[%clk
0:01:41.1]} 29. h4 {[%clk 0:01:54.3]} 29... Rcf7 {[%clk 0:01:35.7]} 30. Rf4
{[%clk 0:01:52.9]} 30... g5 {[%clk 0:01:34.1]} 31. hxg5+ {[%clk 0:01:38.9]}
31... Kxg5 {[%clk 0:01:34.9]} 32. Rfb4 {[%clk 0:01:29.5]} 32... h5 {[%clk
0:01:33.9]} 33. f4+ {[%clk 0:01:30.2]} 33... Kg6 {[%clk 0:01:34]} 34. Rxb7
{[%clk 0:01:29.9]} 34... Rxf6 {[%clk 0:01:34.6]} 35. Kh3 {[%clk 0:01:24.6]}
35... Rd8 {[%clk 0:01:18.9]} 36. R7b6 {[%clk 0:01:14.8]} 36... Rdd6 {[%clk
0:01:15.4]} 37. Rxd6 {[%clk 0:01:15.5]} 37... Rxd6 {[%clk 0:01:16.5]} 38. Rb7
{[%clk 0:01:15.5]} 38... Kh6 {[%clk 0:01:00.1]} 39. a4 {[%clk 0:01:14.2]} 39...
Kg6 {[%clk 0:01:00.2]} 40. Rb8 {[%clk 0:01:09.5]} 40... Kf5 {[%clk 0:00:58.9]}
41. Re8 {[%clk 0:01:09.1]} 41... Rb6 {[%clk 0:00:56.9]} 42. Re5+ {[%clk
0:01:08.3]} 42... Kf6 {[%clk 0:00:57.3]} 43. Rxh5 {[%clk 0:01:09]} 43... Rxb3
{[%clk 0:00:57.7]} 44. a5 {[%clk 0:01:09.8]} 44... Kg6 {[%clk 0:00:57.3]} 45.
Rc5 {[%clk 0:01:09.4]} 45... Kf7 {[%clk 0:00:50.2]} 46. Kg4 {[%clk 0:01:07.5]}
46... Ke7 {[%clk 0:00:46.9]} 47. Rg5 {[%clk 0:01:06]} 47... Kd7 {[%clk
0:00:41.9]} 48. Kh5 {[%clk 0:01:07.2]} 48... Rb5 {[%clk 0:00:40.2]} 49. g4
{[%clk 0:01:03.4]} 49... Rb1 {[%clk 0:00:30.3]} 50. Kg6 {[%clk 0:01:04.2]} 50...
Rf1 {[%clk 0:00:26.7]} 51. f5 {[%clk 0:01:04.4]} 51... Re1 {[%clk 0:00:24.9]}
52. f6 {[%clk 0:01:05.2]} 52... Re6 {[%clk 0:00:24.5]} 53. Rf5 {[%clk
0:01:03.7]} 53... Ke8 {[%clk 0:00:23.7]} 54. Kg7 {[%clk 0:01:03.7]} 1-0

[Event "*** Titled Tuesday Blitz"]
[Site "Chess.com"]
[Date "2019.05.07"]
[Round "10"]
[White "Zq1"]
[Black "BvsN"]
[Result "1-0"]
[WhiteElo "2499"]
[BlackElo "2287"]
[TimeControl "180+2"]
[EndTime "15:25:03 PDT"]
[Termination "Zq1 won by resignation"]

1. d4 {[%clk 0:03:01.9]} 1... d5 {[%clk 0:03:00.7]} 2. c4 {[%clk 0:03:02.8]}
2... c6 {[%clk 0:03:01.9]} 3. cxd5 {[%clk 0:03:03.9]} 3... cxd5 {[%clk
0:03:03.1]} 4. Bg5 {[%clk 0:03:05.1]} 4... Nc6 {[%clk 0:03:01.4]} 5. Nc3 {[%clk
0:03:06.1]} 5... f6 {[%clk 0:03:02.4]} 6. Bf4 {[%clk 0:03:04.4]} 6... e5 {[%clk
0:02:54.6]} 7. dxe5 {[%clk 0:03:04.9]} 7... fxe5 {[%clk 0:02:55.2]} 8. Bd2
{[%clk 0:03:05.7]} 8... Nf6 {[%clk 0:02:53]} 9. e3 {[%clk 0:03:03.2]} 9... Be7
{[%clk 0:02:50.8]} 10. Nf3 {[%clk 0:03:03.6]} 10... O-O {[%clk 0:02:48.4]} 11.
Bb5 {[%clk 0:03:04.2]} 11... Bg4 {[%clk 0:02:47]} 12. h3 {[%clk 0:03:02.6]}
12... Bxf3 {[%clk 0:02:44]} 13. gxf3 {[%clk 0:03:01]} 13... Qb6 {[%clk
0:02:36.7]} 14. Ba4 {[%clk 0:02:43.6]} 14... d4 {[%clk 0:02:25]} 15. Bb3+ {[%clk
0:02:37.9]} 15... Kh8 {[%clk 0:02:25.3]} 16. Na4 {[%clk 0:02:33.5]} 16... Qd8
{[%clk 0:02:07.4]} 17. Rc1 {[%clk 0:02:31.5]} 17... Rc8 {[%clk 0:02:04.7]} 18.
Nc5 {[%clk 0:02:29.5]} 18... Qb6 {[%clk 0:01:38.4]} 19. Ne6 {[%clk 0:02:23.5]}
19... Nb4 {[%clk 0:01:26.6]} 20. O-O {[%clk 0:02:13.4]} 20... Rxc1 {[%clk
0:00:42]} 21. Bxc1 {[%clk 0:02:13.9]} 21... Rc8 {[%clk 0:00:37]} 22. exd4 {[%clk
0:02:13.7]} 22... exd4 {[%clk 0:00:29.8]} 23. Qxd4 {[%clk 0:02:13.4]} 23... Qc6
{[%clk 0:00:13.2]} 24. Ng5 {[%clk 0:02:07.1]} 24... h6 {[%clk 0:00:11.4]} 25.
Nf7+ {[%clk 0:02:07.8]} 25... Kh7 {[%clk 0:00:11.9]} 26. Ne5 {[%clk 0:02:08.9]}
26... Qe8 {[%clk 0:00:07.8]} 27. a3 {[%clk 0:02:01.5]} 27... Nc6 {[%clk
0:00:08.1]} 28. Qd3+ {[%clk 0:02:01.3]} 28... g6 {[%clk 0:00:06.1]} 29. Nxc6
{[%clk 0:01:35.6]} 29... Rxc6 {[%clk 0:00:06.3]} 30. Re1 {[%clk 0:01:33.9]}
30... Qf8 {[%clk 0:00:06.5]} 31. Qe3 {[%clk 0:01:32.6]} 31... Rc7 {[%clk
0:00:07.1]} 32. Bd2 {[%clk 0:01:29]} 32... Bc5 {[%clk 0:00:08.1]} 33. Qf4 {[%clk
0:01:24.4]} 33... Qg7 {[%clk 0:00:08.5]} 34. Bc3 {[%clk 0:01:22.9]} 34... Nh5
{[%clk 0:00:08.8]} 35. Qh4 {[%clk 0:00:57]} 35... Qd7 {[%clk 0:00:06.6]} 36. Bc2
{[%clk 0:00:54.7]} 36... Qd5 {[%clk 0:00:05.3]} 37. Re5 {[%clk 0:00:46.8]} 37...
Qxf3 {[%clk 0:00:05.4]} 38. Rxh5 {[%clk 0:00:46.8]} 38... Rd7 {[%clk 0:00:03.3]}
39. Rxh6+ {[%clk 0:00:46.3]} 39... Kg8 {[%clk 0:00:03.5]} 40. Rxg6+ {[%clk
0:00:43.3]} 40... Kf7 {[%clk 0:00:04.5]} 41. Qh7+ {[%clk 0:00:37.5]} 41... Ke8
{[%clk 0:00:05.4]} 42. Rg8+ {[%clk 0:00:37.7]} 42... Bf8 {[%clk 0:00:06.5]} 43.
Qe4+ {[%clk 0:00:32.1]} 43... Qxe4 {[%clk 0:00:06.6]} 44. Bxe4 {[%clk
0:00:33.2]} 44... Rd1+ {[%clk 0:00:07.6]} 45. Kg2 {[%clk 0:00:33.7]} 45... Rd7
{[%clk 0:00:07.1]} 46. Bb4 {[%clk 0:00:32.8]} 46... Rf7 {[%clk 0:00:07.7]} 47.
Bg6 {[%clk 0:00:33.5]} 1-0

[Event "*** Titled Tuesday Blitz"]
[Site "Chess.com"]
[Date "2019.05.07"]
[Round "10"]
[White "Sutormin_DA"]
[Black "cherryandmint"]
[Result "1-0"]
[WhiteElo "2553"]
[BlackElo "2680"]
[TimeControl "180+2"]
[EndTime "15:25:04 PDT"]
[Termination "Sutormin_DA won on time"]

1. e4 {[%clk 0:02:59.6]} 1... c5 {[%clk 0:03:00]} 2. c3 {[%clk 0:03:00.4]} 2...
e6 {[%clk 0:03:00.4]} 3. d4 {[%clk 0:03:00]} 3... d5 {[%clk 0:03:02.3]} 4. exd5
{[%clk 0:03:01.2]} 4... exd5 {[%clk 0:03:00.8]} 5. Nf3 {[%clk 0:03:02.5]} 5...
Nf6 {[%clk 0:03:00.8]} 6. Bb5+ {[%clk 0:03:02.2]} 6... Bd7 {[%clk 0:03:00.7]} 7.
Bd3 {[%clk 0:02:58]} 7... c4 {[%clk 0:02:59.1]} 8. Bc2 {[%clk 0:02:57.9]} 8...
Bd6 {[%clk 0:02:57.4]} 9. O-O {[%clk 0:02:55.1]} 9... O-O {[%clk 0:02:57.8]} 10.
h3 {[%clk 0:02:55.4]} 10... Nc6 {[%clk 0:02:58.6]} 11. Re1 {[%clk 0:02:55.5]}
11... Re8 {[%clk 0:02:59.6]} 12. Nbd2 {[%clk 0:02:53.4]} 12... b5 {[%clk
0:02:59]} 13. Nf1 {[%clk 0:02:52.1]} 13... h6 {[%clk 0:02:59.8]} 14. Rxe8+
{[%clk 0:02:45.8]} 14... Qxe8 {[%clk 0:03:00.3]} 15. a3 {[%clk 0:02:41.2]} 15...
a5 {[%clk 0:03:00.9]} 16. Ne3 {[%clk 0:02:31.5]} 16... b4 {[%clk 0:03:00.9]} 17.
axb4 {[%clk 0:02:23.9]} 17... axb4 {[%clk 0:03:02.8]} 18. Rxa8 {[%clk
0:02:25.2]} 18... Qxa8 {[%clk 0:03:04.5]} 19. Bf5 {[%clk 0:02:26.7]} 19... Be8
{[%clk 0:03:02.2]} 20. cxb4 {[%clk 0:02:09.3]} 20... Nxb4 {[%clk 0:03:00.8]} 21.
Bd2 {[%clk 0:02:09.8]} 21... Nd3 {[%clk 0:02:43.1]} 22. Bxd3 {[%clk 0:01:59.9]}
22... cxd3 {[%clk 0:02:45]} 23. Nf5 {[%clk 0:02:00.7]} 23... Bf8 {[%clk
0:02:44.2]} 24. Ne5 {[%clk 0:02:01.5]} 24... Bb5 {[%clk 0:02:39.7]} 25. Be3
{[%clk 0:01:42.7]} 25... Qa6 {[%clk 0:02:37.9]} 26. Qb3 {[%clk 0:01:40.2]} 26...
Ne4 {[%clk 0:02:31.5]} 27. Qxd5 {[%clk 0:01:18.2]} 27... Nd6 {[%clk 0:02:09.7]}
28. Nxd6 {[%clk 0:01:12.9]} 28... Bxd6 {[%clk 0:02:11.6]} 29. Qxf7+ {[%clk
0:01:09.8]} 29... Kh8 {[%clk 0:02:02.9]} 30. Qe6 {[%clk 0:00:56.4]} 30... Qa1+
{[%clk 0:01:44.9]} 31. Kh2 {[%clk 0:00:57.1]} 31... Qa6 {[%clk 0:01:46.8]} 32.
f4 {[%clk 0:00:40.8]} 32... Bb4 {[%clk 0:01:09.3]} 33. Qb3 {[%clk 0:00:39.8]}
33... d2 {[%clk 0:00:57.4]} 34. Qc2 {[%clk 0:00:41]} 34... Ba4 {[%clk
0:00:16.1]} 35. b3 {[%clk 0:00:41.6]} 35... Qe2 {[%clk 0:00:17.2]} 36. Bxd2
{[%clk 0:00:27.4]} 36... Bxd2 {[%clk 0:00:17.5]} 37. Qc8+ {[%clk 0:00:28.2]}
37... Kh7 {[%clk 0:00:18.9]} 38. Qf5+ {[%clk 0:00:29.8]} 38... Kh8 {[%clk
0:00:19.9]} 39. bxa4 {[%clk 0:00:31.4]} 39... Qf2 {[%clk 0:00:20.3]} 40. Ng6+
{[%clk 0:00:27.3]} 40... Kh7 {[%clk 0:00:16.8]} 41. Ne7+ {[%clk 0:00:28.8]} 1-0

[Event "*** Titled Tuesday Blitz"]
[Site "Chess.com"]
[Date "2019.05.07"]
[Round "10"]
[White "pedro_gines"]
[Black "vladimirdamjanovic"]
[Result "1-0"]
[WhiteElo "2384"]
[BlackElo "2534"]
[TimeControl "180+2"]
[EndTime "15:25:06 PDT"]
[Termination "pedro_gines won by resignation"]

1. d4 {[%clk 0:03:01.9]} 1... Nf6 {[%clk 0:03:00.3]} 2. c4 {[%clk 0:03:00.6]}
2... c5 {[%clk 0:03:01.3]} 3. d5 {[%clk 0:03:00.4]} 3... b5 {[%clk 0:03:01.4]}
4. cxb5 {[%clk 0:03:02.3]} 4... a6 {[%clk 0:03:02.6]} 5. bxa6 {[%clk 0:03:01.7]}
5... d6 {[%clk 0:03:03.8]} 6. Nc3 {[%clk 0:03:03]} 6... g6 {[%clk 0:03:05.1]} 7.
e4 {[%clk 0:03:00.3]} 7... Bg7 {[%clk 0:03:06.1]} 8. Nf3 {[%clk 0:03:01.1]} 8...
Qa5 {[%clk 0:03:06.6]} 9. Bb5+ {[%clk 0:02:58.3]} 9... Bd7 {[%clk 0:03:07]} 10.
Bxd7+ {[%clk 0:02:58.9]} 10... Nbxd7 {[%clk 0:03:08.9]} 11. O-O {[%clk
0:02:59.4]} 11... O-O {[%clk 0:03:10.3]} 12. a4 {[%clk 0:02:57.7]} 12... Rfb8
{[%clk 0:03:09.4]} 13. Qe2 {[%clk 0:02:58.1]} 13... Qxa6 {[%clk 0:03:10.2]} 14.
Qxa6 {[%clk 0:02:58.3]} 14... Rxa6 {[%clk 0:03:10.9]} 15. Nd2 {[%clk 0:02:59.6]}
15... Rb4 {[%clk 0:03:07.1]} 16. Re1 {[%clk 0:02:41.1]} 16... Ng4 {[%clk
0:02:54.7]} 17. Kf1 {[%clk 0:02:22.6]} 17... Nxh2+ {[%clk 0:02:48.2]} 18. Ke2
{[%clk 0:02:23.1]} 18... Ng4 {[%clk 0:02:49.5]} 19. f4 {[%clk 0:02:16.6]} 19...
Nb6 {[%clk 0:02:41.7]} 20. a5 {[%clk 0:02:14.5]} 20... Bxc3 {[%clk 0:02:24.4]}
21. bxc3 {[%clk 0:02:13.5]} 21... Rb5 {[%clk 0:02:25.5]} 22. Kf3 {[%clk
0:01:20.5]} 22... h5 {[%clk 0:02:23.1]} 23. e5 {[%clk 0:00:55.2]} 23... Raxa5
{[%clk 0:02:12.2]} 24. Rxa5 {[%clk 0:00:54.3]} 24... Rxa5 {[%clk 0:02:13.1]} 25.
exd6 {[%clk 0:00:55.3]} 25... exd6 {[%clk 0:02:14.3]} 26. Re8+ {[%clk
0:00:55.7]} 26... Kg7 {[%clk 0:02:10.5]} 27. Rd8 {[%clk 0:00:49.2]} 27... Ra1
{[%clk 0:01:35.8]} 28. Rxd6 {[%clk 0:00:47.3]} 28... Rxc1 {[%clk 0:01:17.8]} 29.
Rxb6 {[%clk 0:00:46.6]} 29... Rxc3+ {[%clk 0:01:18.6]} 30. Ke2 {[%clk
0:00:46.3]} 30... Nf6 {[%clk 0:01:10.2]} 31. Rxf6 {[%clk 0:00:45.1]} 31... Rg3
{[%clk 0:01:02.1]} 32. Rc6 {[%clk 0:00:42.4]} 32... Rxg2+ {[%clk 0:01:02.6]} 33.
Ke3 {[%clk 0:00:43.8]} 33... h4 {[%clk 0:01:01.2]} 34. d6 {[%clk 0:00:29.6]}
34... h3 {[%clk 0:00:58.3]} 35. Nf3 {[%clk 0:00:22.4]} 35... Kf6 {[%clk
0:00:20.3]} 36. d7+ {[%clk 0:00:17.6]} 36... Ke7 {[%clk 0:00:21.2]} 37. Rd6
{[%clk 0:00:18.5]} 37... Kd8 {[%clk 0:00:20.9]} 38. Ne5 {[%clk 0:00:20]} 38...
h2 {[%clk 0:00:03.5]} 39. Nxf7+ {[%clk 0:00:15.6]} 39... Ke7 {[%clk 0:00:04.6]}
40. d8=Q+ {[%clk 0:00:16.8]} 40... Kxf7 {[%clk 0:00:06.5]} 41. Qc7+ {[%clk
0:00:16]} 1-0

[Event "*** Titled Tuesday Blitz"]
[Site "Chess.com"]
[Date "2019.05.07"]
[Round "10"]
[White "Saitama_Hero"]
[Black "Taron_Shagbazyan"]
[Result "0-1"]
[WhiteElo "2250"]
[BlackElo "2722"]
[TimeControl "180+2"]
[EndTime "15:25:09 PDT"]
[Termination "Taron_Shagbazyan won on time"]

1. d4 {[%clk 0:03:01.9]} 1... Nf6 {[%clk 0:02:59.4]} 2. c4 {[%clk 0:03:03.3]}
2... e6 {[%clk 0:03:00.5]} 3. Nc3 {[%clk 0:03:04.8]} 3... Bb4 {[%clk 0:02:59.2]}
4. f3 {[%clk 0:03:04.9]} 4... d5 {[%clk 0:02:58.8]} 5. a3 {[%clk 0:03:06.2]}
5... Bxc3+ {[%clk 0:02:59.6]} 6. bxc3 {[%clk 0:03:08.1]} 6... c5 {[%clk
0:03:00.8]} 7. cxd5 {[%clk 0:03:08.6]} 7... exd5 {[%clk 0:02:52]} 8. e3 {[%clk
0:03:09.9]} 8... O-O {[%clk 0:02:51.9]} 9. Bd3 {[%clk 0:03:11.4]} 9... Re8
{[%clk 0:02:53.3]} 10. Ne2 {[%clk 0:03:12.8]} 10... b6 {[%clk 0:02:51]} 11. O-O
{[%clk 0:03:13.8]} 11... Ba6 {[%clk 0:02:51.9]} 12. Nf4 {[%clk 0:03:12.7]} 12...
Bxd3 {[%clk 0:02:51.6]} 13. Qxd3 {[%clk 0:03:14.6]} 13... Nc6 {[%clk 0:02:47.1]}
14. g4 {[%clk 0:03:14.7]} 14... h6 {[%clk 0:02:41.4]} 15. Ra2 {[%clk 0:03:14.4]}
15... Rc8 {[%clk 0:02:29.8]} 16. Rg2 {[%clk 0:03:13.4]} 16... cxd4 {[%clk
0:02:26.8]} 17. cxd4 {[%clk 0:03:15.3]} 17... Nh7 {[%clk 0:02:27.4]} 18. h4
{[%clk 0:02:48.5]} 18... Na5 {[%clk 0:02:25.4]} 19. g5 {[%clk 0:02:10.7]} 19...
hxg5 {[%clk 0:02:25.7]} 20. hxg5 {[%clk 0:02:12.6]} 20... Nxg5 {[%clk
0:02:26.5]} 21. Qf5 {[%clk 0:01:56.4]} 21... f6 {[%clk 0:02:27.1]} 22. Nxd5
{[%clk 0:01:53.3]} 22... Nb3 {[%clk 0:02:25.5]} 23. f4 {[%clk 0:01:40]} 23...
Ne4 {[%clk 0:02:14.2]} 24. Qg4 {[%clk 0:00:54.1]} 24... Rc7 {[%clk 0:01:44.6]}
25. Nxc7 {[%clk 0:00:48.9]} 25... Qxc7 {[%clk 0:01:46.5]} 26. Bb2 {[%clk
0:00:48.3]} 26... Nbd2 {[%clk 0:01:45.5]} 27. Rc1 {[%clk 0:00:46.5]} 27... Qf7
{[%clk 0:01:46.6]} 28. d5 {[%clk 0:00:43.8]} 28... Nd6 {[%clk 0:01:33.2]} 29.
Rc6 {[%clk 0:00:38.4]} 29... N2c4 {[%clk 0:01:28.2]} 30. Bd4 {[%clk 0:00:37.3]}
30... Re7 {[%clk 0:01:22.6]} 31. Rg3 {[%clk 0:00:26.1]} 31... Qxd5 {[%clk
0:01:00.6]} 32. Bxf6 {[%clk 0:00:14.1]} 32... Qxc6 {[%clk 0:00:39.4]} 33. Bxe7
{[%clk 0:00:14.6]} 33... Ne8 {[%clk 0:00:40.5]} 34. Bb4 {[%clk 0:00:10]} 34...
Qd5 {[%clk 0:00:33.7]} 35. Qg6 {[%clk 0:00:08.2]} 35... Qd7 {[%clk 0:00:30.8]}
36. f5 {[%clk 0:00:04.5]} 36... Nf6 {[%clk 0:00:19.8]} 37. Kh2 {[%clk 0:00:04]}
37... Ne5 {[%clk 0:00:19.5]} 38. Qxf6 {[%clk 0:00:04.5]} 38... Nf3+ {[%clk
0:00:16.7]} 39. Kg2 {[%clk 0:00:03.3]} 39... Qb7 {[%clk 0:00:14.1]} 0-1